[Event "Zlatni otok Krk Open 2020"]
[Site "Malinska"]
[Date "2020.11.08"]
[Round "5.8"]
[White "Colev, Ivor"]
[Black "Ljubicic, Mario"]
[Result "1-0"]
[ECO "C95"]
[WhiteElo "1769"]
[BlackElo "2023"]
[Annotator "ChessBase"]
[PlyCount "105"]
[EventDate "2020.11.05"]
[EventType "swiss"]
[EventCountry "CRO"]
[SourceTitle "playchess.com"]
[Source "ChessBase"]
[SourceQuality "1"]
[TimeControl "5400+30"]

1. e4 {[%emt 0:00:00]} e5 {[%emt 0:00:05]} 2. Nf3 {[%emt 0:00:00]} Nc6 {[%emt 0:00:05]} 3. Bb5 {[%emt 0:00:00]} a6 {[%emt 0:00:07]} 4. Ba4 {[%emt 0:00:00]} Nf6 {[%emt 0:00:05]} 5. O-O {[%emt 0:00:00]} Be7 {[%emt 0:00:04]} 6. Re1 {[%emt 0:00:00]} b5 {[%emt 0:00:03]} 7. Bb3 {[%emt 0:00:00]} d6 {[%emt 0:00:03]} 8. c3 {[%emt 0:00:02]} O-O {[%emt 0:00:09]} 9. h3 {[%emt 0:00:03]} Bb7 {[%emt 0:01:58]} 10. d4 {[%emt 0:01:11]} Nb8 {[%emt 0:09:10]} 11. Bc2 {[%emt 0:01:55]} Nbd7 {[%emt 0:00:30]} 12. Nbd2 {[%emt 0:00:58]} Re8 {[%emt 0:00:23]} 13. Nf1 {[%emt 0:03:20]} Bf8 {[%emt 0:00:30]} 14. Ng3 {[%emt 0:00:37]} g6 {[%emt 0:00:14]} 15. b3 {[%emt 0:08:10]} Bg7 {[%emt 0:00:56]} 16. Bb2 {[%emt 0:00:19]} Qe7 {[%emt 0:03:17]} 17. Qd3 {[%emt 0:04:59]} Nf8 {[%emt 0:04:30]} 18. a4 {[%emt 0:07:30]} c6 {[%emt 0:06:42]} 19. Ba3 {[%emt 0:01:45]} Qc7 {[%emt 0:01:02]} 20. dxe5 {[%emt 0:01:59]} dxe5 {[%emt 0:01:47]} 21. Bd6 {[%emt 0:00:19]} Qb6 {[%emt 0:00:33]} 22. Bxe5 {[%emt 0:03:53]} Rad8 {[%emt 0:01:42]} 23. Qf1 {[%emt 0:02:48]} N8d7 {[%emt 0:04:42]} 24. a5 {[%emt 0:04:03]} Qc5 {[%emt 0:03:40]} 25. Bd4 {[%emt 0:01:15]} Qf8 {[%emt 0:00:35]} 26. c4 {[%emt 0:03:24]} c5 {[%emt 0:19:29]} 27. Bb2 {[%emt 0:02:49]} Nh5 {[%emt 0:08:10]} 28. Bxg7 {[%emt 0:02:29]} Qxg7 {[%emt 0:01:11]} 29. Nxh5 {[%emt 0:01:33]} gxh5 {[%emt 0:00:06]} 30. cxb5 {[%emt 0:01:04]} axb5 {[%emt 0:01:01]} 31. Qxb5 {[%emt 0:00:41]} Bxe4 {[%emt 0:02:23]} 32. Bxe4 {[%emt 0:00:21]} Rxe4 {[%emt 0:00:07]} 33. Rxe4 {[%emt 0:00:23]} Qxa1+ {[%emt 0:00:05]} 34. Re1 {[%emt 0:00:08]} Qf6 {[%emt 0:02:47]} 35. a6 {[%emt 0:02:15]} Qb6 {[%emt 0:00:59]} 36. Qc4 {[%emt 0:02:03]} Nf8 {[%emt 0:05:25]} 37. Ne5 {[%emt 0:01:29]} Ne6 {[%emt 0:00:42]} 38. Ra1 {[%emt 0:05:04]} Ra8 {[%emt 0:01:49]} 39. Nd7 {[%emt 0:00:57]} Qd6 {[%emt 0:01:07]} 40. Nf6+ {[%emt 0:00:08]} Kf8 {[%emt 0:01:15]} 41. a7 {[%emt 0:00:52]} Nd4 {[%emt 0:03:22]} 42. Ne4 {[%emt 0:03:12]} Qe5 {[%emt 0:03:56]} 43. Qxc5+ {[%emt 0:00:15]} Qxc5 {[%emt 0:00:06]} 44. Nxc5 {[%emt 0:00:07]} Ke7 {[%emt 0:00:38]} 45. Ra6 {[%emt 0:03:33]} Nb5 {[%emt 0:00:52]} 46. Ra5 {[%emt 0:03:06]} Nxa7 {[%emt 0:00:11]} 47. Na4 {[%emt 0:09:46]} Kd8 {[%emt 0:00:15]} 48. Nc3 {[%emt 0:05:09]} Rc8 {[%emt 0:00:29]} 49. Rxa7 {[%emt 0:00:04]} Rxc3 {[%emt 0:00:07]} 50. Rxf7 {[%emt 0:00:06]} Rxb3 {[%emt 0:00:05]} 51. Rxh7 {[%emt 0:00:06]} Rb5 {[%emt 0:00:05]} 52. Rf7 {[%emt 0:00:11]} Ke8 {[%emt 0:00:07]} 53. Rf4 {[%emt 0:00:09]} 1-0

[Event "Zlatni otok Krk Open 2020"]
[Site "Malinska"]
[Date "2020.11.08"]
[Round "5.9"]
[White "Lohia, Sohum"]
[Black "Poljan, Max"]
[Result "1-0"]
[ECO "B20"]
[WhiteElo "1993"]
[BlackElo "1616"]
[Annotator "NA"]
[PlyCount "57"]
[EventDate "2020.11.05"]
[EventType "swiss"]
[EventCountry "CRO"]
[SourceTitle "playchess.com"]
[Source "ChessBase"]
[SourceQuality "1"]
[TimeControl "5400+30"]

{[%evp 16,44,56,45,55,47,65,39,58,48,161,32,37,29,29,39,84,37,31,71,91,123,172,204,167,208,244,262,256,178,250]} 1. e4 {[%emt 0:00:00]} c5 {[%emt 0:00:00]} 2. g3 {[%emt 0:00:00]} e6 {[%emt 0:00:00]} 3. Bg2 {[%emt 0:00:06]} Nc6 {[%emt 0:00:35]} 4. Ne2 {[%emt 0:00:06]} Nf6 {[%emt 0:01:14]} 5. O-O {[%emt 0:00:12]} Be7 {[%emt 0:01:23]} 6. c3 {[%emt 0:00:20] B20: Sicilian: Unusual White 2nd moves.} d6 {[%emt 0:01:51]} 7. d4 {[%emt 0:00:20]} cxd4 {[%emt 0:01:44]} 8. cxd4 {[%emt 0:00:07]} d5 {[%emt 0:01:08]} 9. e5 {[%emt 0:01:16]} Nd7 {[%emt 0:00:05]} 10. Nbc3 {[%emt 0:00:34]} a6 {[%emt 0:03:05] [#]} 11. f4 $146 {[%emt 0:03:55]} ({Predecessor:} 11. Be3 b5 12. Rc1 Bb7 13. f4 Nb6 14. b3 b4 15. Nb1 f5 16. exf6 Bxf6 17. Nd2 {1-0 (37) Bartel,M (2306)-Leao,T (2084) Lisbon 2019}) 11... g6 {[%emt 0:04:35]} 12. Be3 {[%emt 0:02:21]} b5 {[%emt 0:03:24] [#]} (12... Nb6 $14) 13. Qd2 {[%emt 0:02:13]} (13. f5 $1 $18) 13... Nb6 {[%emt 0:04:48]} 14. b3 {[%emt 0:01:27]} b4 {[%emt 0:10:04]} 15. Nd1 {[%emt 0:00:37]} a5 {[%emt 0:01:07]} 16. Nb2 {[%emt 0:02:42]} (16. Rc1 $5 {[%cal Rc1c6]} Bd7 17. g4 $14) 16... Ba6 {[%emt 0:03:49]} 17. g4 {[%emt 0:02:39]} h5 {[%emt 0:05:43] [#]} 18. f5 $1 {[%emt 0:02:27]} gxf5 {[%emt 0:06:28]} 19. gxf5 {[%emt 0:00:30]} exf5 {[%emt 0:01:00]} 20. Rxf5 {[%emt 1:18:08]} Bc8 {[%emt 0:00:19]} 21. Rff1 {[%emt 0:00:00]} Rg8 {[%emt 0:03:44]} 22. Qc2 {[%emt 0:00:00]} Qd7 $18 {[%emt 0:23:57]} 23. Nf4 {[%emt 0:00:00]} Ba6 {[%emt 0:06:23]} 24. Nbd3 {[%emt 0:00:00]} Rc8 {[%emt 0:04:10]} 25. e6 {[%emt 0:00:00]} fxe6 {[%emt 0:03:10]} 26. Qe2 {[%emt 0:00:00]} h4 {[%emt 0:04:21]} 27. Kh1 {[%emt 0:00:00]} Kd8 {[%emt 0:01:29]} 28. Bh3 {[%emt 0:00:00]} Bxd3 {[%emt 0:02:10]} 29. Qxd3 {[%emt 0:04:30]} 1-0

[Event "Zlatni otok Krk Open 2020"]
[Site "Malinska"]
[Date "2020.11.08"]
[Round "5.10"]
[White "Lovrinic, Vlatko"]
[Black "Novosel, Lovro"]
[Result "1/2-1/2"]
[ECO "D00"]
[WhiteElo "1767"]
[BlackElo "1900"]
[Annotator "NA"]
[PlyCount "137"]
[EventDate "2020.11.05"]
[EventType "swiss"]
[EventCountry "CRO"]
[SourceTitle "playchess.com"]
[Source "ChessBase"]
[SourceQuality "1"]
[TimeControl "5400+30"]

1. d4 {[%emt 0:00:00]} d5 {[%emt 0:00:00]} 2. Bf4 {[%emt 0:00:00]} e6 {[%emt 0:00:27]} 3. e3 {[%emt 0:00:14]} Bd6 {[%emt 0:00:50]} 4. Bg3 {[%emt 0:00:36]} Nf6 {[%emt 0:00:43]} 5. Nd2 {[%emt 0:00:21]} b6 {[%emt 0:00:48]} 6. c3 {[%emt 0:00:30] D00: 1 d4 d5: Unusual lines.} O-O {[%emt 0:00:47]} 7. Bd3 {[%emt 0:01:13]} Ba6 {[%emt 0:00:52]} 8. Bxa6 {[%emt 0:05:09]} Nxa6 {[%emt 0:00:21]} 9. Qe2 {[%emt 0:04:23]} Nb8 {[%emt 0:01:41]} 10. Ngf3 {[%emt 0:01:44]} c5 {[%emt 0:03:06]} 11. Bxd6 {[%emt 0:04:25]} Qxd6 {[%emt 0:00:47]} 12. Ne5 {[%emt 0:01:06] [#]} Nbd7 $146 {[%emt 0:03:09]} ({Predecessor:} 12... Nfd7 13. Ndf3 Nc6 14. Nxc6 Qxc6 15. O-O b5 16. dxc5 Qxc5 17. e4 Nb6 18. Nd4 b4 19. exd5 bxc3 {0-1 (61) Metz,H (2275)-Vatter,H (2361) Boeblingen 1999}) 13. f4 {[%emt 0:02:48]} cxd4 {[%emt 0:00:48]} 14. exd4 {[%emt 0:01:22]} b5 {[%emt 0:04:39]} 15. O-O {[%emt 0:09:14]} b4 {[%emt 0:07:07]} 16. Rab1 {[%emt 0:06:11]} bxc3 {[%emt 0:05:32]} 17. bxc3 {[%emt 0:00:15]} Rfc8 {[%emt 0:00:18]} 18. Rb3 {[%emt 0:05:43]} a5 {[%emt 0:02:07]} 19. Qd3 {[%emt 0:03:40]} Ra7 {[%emt 0:10:47]} 20. c4 {[%emt 0:05:39]} dxc4 {[%emt 0:04:39]} 21. Ndxc4 {[%emt 0:01:10]} Qa6 {[%emt 0:00:26]} 22. Rfb1 {[%emt 0:12:19]} Nd5 {[%emt 0:05:59]} 23. Nxd7 {[%emt 0:12:57]} Rxd7 {[%emt 0:00:24]} 24. Ne5 {[%emt 0:01:05]} Qxd3 {[%emt 0:00:13]} 25. Nxd3 {[%emt 0:00:08]} g6 {[%emt 0:03:09]} 26. Nc5 {[%emt 0:02:11]} Rdc7 {[%emt 0:02:57]} 27. g3 {[%emt 0:00:55]} Nb4 {[%emt 0:01:34]} 28. Kf2 {[%emt 0:02:23]} Rd8 {[%emt 0:00:56]} 29. a3 {[%emt 0:03:00]} Nc6 {[%emt 0:00:32]} 30. Rc3 {[%emt 0:04:38]} Nxd4 {[%emt 0:15:08]} 31. Rd1 {[%emt 0:02:11]} Rd5 {[%emt 0:02:46]} 32. Ne4 {[%emt 0:01:48]} Rxc3 {[%emt 0:00:27]} 33. Nxc3 {[%emt 0:00:02]} Rc5 {[%emt 0:01:04]} 34. Rxd4 {[%emt 0:01:22]} Rxc3 {[%emt 0:00:04]} 35. Ra4 {[%emt 0:00:29]} Rc2+ {[%emt 0:00:15]} 36. Kf3 {[%emt 0:00:33]} Rxh2 {[%emt 0:00:14]} 37. Rxa5 {[%emt 0:00:18]} h5 $15 {[%emt 0:00:37]} 38. Ra7 {[%emt 0:01:39]} Kg7 {[%emt 0:00:17]} 39. a4 {[%emt 0:00:24]} Ra2 {[%emt 0:00:13]} 40. a5 {[%emt 0:01:20]} Ra3+ {[%emt 0:00:16]} 41. Kf2 {[%emt 0:00:41]} Kf6 {[%emt 0:00:32]} 42. Kg2 {[%emt 0:00:17]} Ra1 {[%emt 0:04:57]} 43. a6 {[%emt 0:00:28]} Ra5 {[%emt 0:00:10]} 44. Kf3 {[%emt 0:00:31]} g5 {[%emt 0:00:44]} 45. fxg5+ {[%emt 0:00:18]} Rxg5 {[%emt 0:00:05]} 46. Rb7 {[%emt 0:00:26]} Ra5 {[%emt 0:00:06]} 47. a7 {[%emt 0:00:20]} Ra4 {[%emt 0:00:47]} 48. Rc7 {[%emt 0:00:23]} Kg6 {[%emt 0:00:34]} 49. Re7 {[%emt 0:00:30]} f6 {[%emt 0:03:56]} 50. Rxe6 {[%emt 0:00:40]} Rxa7 {[%emt 0:00:04]} 51. Rb6 {[%emt 0:00:37]} Ra3+ {[%emt 0:01:00]} 52. Kf4 {[%emt 0:00:41]} Ra4+ {[%emt 0:00:10]} 53. Kf3 {[%emt 0:00:07]} Kg5 {[%emt 0:00:09]} 54. Rb5+ {[%emt 0:00:47]} f5 {[%emt 0:00:06]} 55. Rb8 {[%emt 0:00:18]} Ra3+ {[%emt 0:00:06]} 56. Kg2 {[%emt 0:00:15]} Ra6 {[%emt 0:02:01]} 57. Rg8+ {[%emt 0:00:43]} Rg6 {[%emt 0:00:04]} 58. Rb8 {[%emt 0:00:11]} h4 {[%emt 0:00:08]} 59. gxh4+ {[%emt 0:00:22]} Kxh4+ {[%emt 0:00:12]} 60. Kf2 {[%emt 0:00:20]} Rc6 {[%emt 0:00:21]} 61. Rb3 {[%emt 0:00:50]} Rc4 {[%emt 0:00:32]} 62. Kf3 {[%emt 0:02:34]} Kg5 {[%emt 0:00:58]} 63. Ra3 {[%emt 0:00:47]} Rf4+ {[%emt 0:00:10]} 64. Kg2 {[%emt 0:00:32]} Rg4+ {[%emt 0:00:25]} 65. Kf2 {[%emt 0:00:20]} Rc4 {[%emt 0:00:44]} 66. Rb3 {[%emt 0:00:16]} f4 {[%emt 0:00:14]} 67. Rb8 {[%emt 0:01:03]} Rc2+ {[%emt 0:00:05]} 68. Kf3 {[%emt 0:00:17]} Rc3+ {[%emt 0:00:04]} 69. Kf2 {[%emt 0:00:08]} 1/2-1/2